bitfinex/quotes_ETHUSD_20250508
["timestamp","ask_amount","ask_price","bid_price","bid_amount"]
[1746667168744,5.47186062,1827.6,1827.3,4.28669727]
[1746667169053,17.38551817,1827.8,1827.4,5.90079689]
[1746667169418,17.38551817,1827.8,1827.4,5.95551286]
[1746667169714,11.9142189,1827.8,1827.4,5.95551286]
[1746667169916,6.443,1827.8,1827.6,5.47162535]
[1746667170148,6.443,1827.8,1827.5,10.55025586]
[1746667170419,6.443,1827.8,1827.6,1.05502559]
[1746667170620,6.443,1827.8,1827.6,6.52668041]
[1746667171154,6.443,1827.8,1827.7,5.47135744]
[1746667171834,5.47050146,1828.0,1827.7,5.47135744]
[1746667172030,0.7904,1827.9,1827.5,0.7917]
[1746667172358,0.7904,1827.9,1827.3,6.792]
[1746667172359,5.47165681,1827.6,1827.3,6.792]
[1746667172650,5.47165681,1827.6,1827.4,0.6792]
[1746667172839,5.47159062,1827.7,1827.3,6.25452535]
[1746667173043,10.9431775,1827.7,1827.3,6.25452535]
[1746667173354,5.47168829,1827.6,1827.3,6.25452535]
[1746667174258,5.47168829,1827.6,1827.3,0.782]
[1746667174463,5.47137812,1827.7,1827.3,0.782]
[1746667174755,5.47137812,1827.7,1827.3,6.25443803]
[1746667174932,10.94298207,1827.7,1827.4,0.6254438]
[1746667175133,5.47137812,1827.7,1827.4,0.6254438]
[1746667175918,10.94299501,1827.7,1827.4,0.6254438]
[1746667176118,5.47137812,1827.7,1827.4,0.6254438]
[1746667176320,5.47168846,1827.6,1827.4,0.6254438]
[1746667176526,5.47196858,1827.5,1827.3,0.782]
[1746667176944,5.47196858,1827.5,1827.2,4.69490831]
[1746667177126,5.47226738,1827.4,1827.2,4.69490831]
[1746667177360,5.47226738,1827.4,1827.2,5.78845529]
[1746667177735,6.24352647,1827.6,1827.2,11.31592013]
[1746667177949,5.47182647,1827.6,1827.3,5.47254012]
[1746667178277,5.47182647,1827.6,1827.4,0.8284]
[1746667179485,5.47195622,1827.5,1827.2,5.78845529]
[1746667179777,5.47225878,1827.4,1827.2,1.50175802]
[1746667179982,11.88837778,1827.7,1827.2,1.50175802]
[1746667179983,6.22459624,1827.5,1827.2,0.40821104]
[1746667180299,5.47209624,1827.5,1827.1,8.52767993]
[1746667180438,5.47209624,1827.5,1827.1,8.4729522]
[1746667180638,5.47180995,1827.6,1827.2,4.28669727]
[1746667180875,5.47180995,1827.6,1827.3,1.21326973]
[1746667181576,11.88846321,1827.7,1827.3,1.21326973]
[1746667181756,11.88846321,1827.7,1827.3,6.68563185]
[1746667182370,5.47166281,1827.6,1827.3,6.68563185]
[1746667182683,5.47228339,1827.4,1827.2,0.41823881]
[1746667182839,5.47228339,1827.4,1827.1,3.7781]
[1746667183176,5.47228339,1827.4,1827.1,9.25124064]
[1746667184376,5.4720361,1827.5,1827.1,9.25124064]
[1746667184575,5.4720361,1827.5,1827.2,0.92512406]
[1746667184778,5.4720361,1827.5,1827.2,1.33658595]
[1746667185278,10.94425151,1827.5,1827.2,1.33658595]
[1746667185476,5.47247736,1827.4,1827.2,0.41146189]
[1746667185667,5.47247736,1827.4,1827.1,9.25116564]
[1746667185870,10.94498202,1827.4,1827.1,3.7781]
[1746667186178,5.47247736,1827.4,1827.1,3.7781]
[1746667186343,10.94498955,1827.4,1827.1,3.7781]
[1746667186544,5.47247365,1827.4,1827.1,10.60503991]
[1746667187072,5.47262015,1827.3,1827.1,5.13190435]
[1746667187277,5.47243148,1827.4,1827.1,5.13190435]
[1746667188179,5.47236738,1827.4,1827.1,5.13190435]
[1746667188380,5.47236738,1827.4,1827.1,10.60504717]
[1746667188584,5.47247474,1827.4,1827.1,5.13190435]
[1746667189685,5.47277295,1827.3,1827.1,3.41855401]
[1746667189860,10.94556538,1827.3,1827.1,3.41855401]
[1746667190184,5.47285464,1827.2,1827.1,0.41855401]
[1746667190366,6.30287295,1827.3,1826.9,9.77171214]
[1746667190573,5.47291516,1827.2,1826.9,9.77171214]
[1746667190773,5.47291516,1827.2,1827.0,0.50559613]
[1746667191382,6.30287295,1827.3,1827.0,0.50559613]
[1746667192081,11.77569322,1827.3,1827.0,0.50559613]
[1746667192286,6.30287295,1827.3,1827.0,0.50559613]
[1746667192590,5.47291623,1827.2,1827.0,0.50559613]
[1746667192789,5.47227907,1827.4,1826.5,0.804]
[1746667192790,5.47465235,1826.6,1826.5,0.804]
[1746667193093,5.47465235,1826.6,1826.4,7.91691865]
[1746667193385,6.30092363,1826.8,1826.4,9.33656554]
[1746667193386,5.47456103,1826.7,1826.4,9.33656554]
[1746667193762,10.94916227,1826.7,1826.4,9.33656554]
[1746667193963,10.94916227,1826.7,1826.4,9.75751074]
[1746667194283,5.4747007,1826.6,1826.4,9.50751074]
[1746667194488,5.4747007,1826.6,1826.4,3.80116658]
[1746667195079,5.47451881,1826.7,1826.4,8.08786385]
[1746667195258,5.4737983,1826.9,1826.5,5.4749323]
[1746667195451,5.47288078,1827.2,1826.5,5.4749323]
[1746667195452,6.418,1827.2,1826.8,9.76051212]
[1746667195687,11.89042697,1827.4,1827.0,4.28669727]
[1746667195991,11.89042315,1827.4,1827.0,9.76000887]
[1746667196291,5.47272962,1827.3,1827.0,4.28669727]
[1746667196494,6.418,1827.4,1827.0,4.28669727]
[1746667196495,11.89042436,1827.4,1827.0,5.47325268]
[1746667196691,6.418,1827.4,1827.1,5.47309059]
[1746667196994,11.89026026,1827.4,1827.0,11.2379583]
[1746667197568,11.89026026,1827.4,1827.0,16.71119126]
[1746667198296,11.89026026,1827.4,1827.0,11.2378938]
[1746667199497,17.36279481,1827.4,1827.0,11.2378938]
[1746667199701,5.4728554,1827.2,1826.9,9.3063922]
[1746667199901,5.47345374,1827.0,1826.9,3.0]
[1746667200082,5.47345374,1827.0,1826.7,9.2467391]
[1746667200285,6.2649424,1827.2,1826.9,3.0]
[1746667200485,11.89041862,1827.4,1827.0,9.81476082]
[1746667200800,11.89041862,1827.4,1827.0,10.53242691]
[1746667201495,5.47269494,1827.3,1827.0,0.7724]
[1746667201663,5.47286316,1827.2,1826.9,8.47357986]
[1746667201982,5.47269494,1827.3,1826.9,13.94715553]
[1746667202182,11.89044375,1827.4,1826.9,14.23101849]
[1746667202389,6.418,1827.4,1827.2,0.7982]
[1746667205060,6.418,1827.4,1827.2,6.27093383]
[1746667205678,5.47196367,1827.5,1827.2,6.27093383]
[1746667205998,11.86082125,1827.6,1827.3,5.47246368]
[1746667205999,6.389,1827.6,1827.3,5.47246368]
[1746667206297,11.86066837,1827.6,1827.2,11.74356591]
[1746667206501,11.86066837,1827.6,1827.2,7.87390891]
[1746667206803,6.389,1827.6,1827.2,5.40122632]
[1746667207099,6.389,1827.6,1827.4,3.0]
[1746667207610,11.86078037,1827.6,1827.4,3.0]
[1746667207909,6.389,1827.6,1827.4,3.0]
[1746667208412,6.389,1827.6,1827.4,9.31928859]
[1746667208905,6.389,1827.6,1827.4,15.19869318]
[1746667209200,0.7844,1828.1,1827.6,0.7795]
[1746667209402,11.85897773,1828.2,1827.8,9.75751979]
[1746667209569,11.85897773,1828.2,1827.9,5.47074735]
[1746667209879,6.389,1828.2,1827.9,5.47057859]
[1746667210214,6.389,1828.2,1827.9,10.94119234]
[1746667210400,6.389,1828.2,1828.0,5.47041937]
[1746667210568,6.389,1828.2,1828.0,5.52487788]
[1746667210776,0.8021,1828.5,1828.4,5.46926274]
[1746667211073,0.4309526,1828.8,1828.5,5.46880863]
[1746667211478,0.4309526,1828.8,1828.3,3.7807]
[1746667211678,5.46866455,1828.6,1828.1,3.808]
[1746667211915,5.4691151,1828.5,1828.1,9.27815795]
[1746667212095,5.4692848,1828.4,1828.1,3.808]
[1746667212580,5.46997069,1828.2,1827.9,3.8177]
[1746667213308,5.46997069,1828.2,1827.9,0.8177]
[1746667213672,6.22283361,1828.3,1827.9,6.28841242]
[1746667214000,10.81393093,1828.8,1828.2,5.46971512]
[1746667214203,0.4309526,1828.8,1828.5,0.8168]
[1746667214403,0.4309526,1828.8,1828.5,6.28574904]
[1746667214806,0.4309526,1828.8,1828.7,5.4683655]
[1746667215106,0.4309526,1828.8,1828.7,9.35034277]
[1746667215315,0.4309526,1828.8,1828.7,17.88622889]
[1746667215472,6.28104868,1829.8,1829.4,9.75280903]
[1746667215670,0.8158,1829.8,1829.4,9.75295943]
[1746667215911,11.85288669,1829.9,1829.5,5.46586864]
[1746667216204,6.388,1829.9,1829.5,0.05465531]
[1746667216379,6.388,1829.9,1829.5,5.52048749]
[1746667216580,6.388,1829.9,1829.5,0.05465531]
[1746667216795,5.46525341,1829.8,1829.6,5.04479727]
[1746667217109,5.46580682,1829.6,1829.3,3.7581]
[1746667217294,5.46570312,1829.6,1829.3,3.0]
[1746667217605,6.26901843,1829.8,1829.4,9.75293318]
[1746667217809,5.46531843,1829.8,1829.4,5.46623591]
[1746667218574,10.93063771,1829.8,1829.4,5.46623591]
[1746667218775,5.46544045,1829.7,1829.3,12.96290045]
[1746667218976,5.46569186,1829.6,1829.3,7.49645524]
[1746667219176,5.46610163,1829.5,1829.3,3.0]
[1746667219683,5.46671711,1829.3,1829.0,0.8125]
[1746667219883,5.46640013,1829.4,1829.0,0.8125]
[1746667220084,0.7782,1829.6,1829.1,4.55111928]
[1746667220286,5.46552858,1829.7,1829.2,3.0]
[1746667220489,5.46578013,1829.6,1829.2,8.46677084]
[1746667220689,5.46578013,1829.6,1829.2,10.30979607]
[1746667221006,5.46623001,1829.5,1829.1,4.49645524]
[1746667221182,5.46579978,1829.6,1829.1,9.9634035]
[1746667221382,6.388,1829.9,1829.3,8.46634735]
[1746667221592,6.388,1829.9,1829.4,3.0546553]
[1746667221593,5.46537877,1829.7,1829.4,3.0546553]
[1746667222011,5.46537877,1829.7,1829.4,3.0]
[1746667222211,5.46525944,1829.8,1829.3,5.46638212]
[1746667222393,5.46525944,1829.8,1829.4,8.52082896]
[1746667222794,5.46525944,1829.8,1829.4,8.46617477]
[1746667223120,5.46537913,1829.7,1829.4,3.0]
[1746667223292,11.85278059,1829.9,1829.6,0.8112]
[1746667223614,11.85293378,1829.9,1829.6,0.8112]
[1746667223810,5.46508468,1829.8,1829.6,0.8112]
[1746667224009,5.46579721,1829.6,1829.2,3.7705]
[1746667224211,5.46552913,1829.7,1829.2,5.75689491]
[1746667224513,5.46568399,1829.6,1829.2,11.22356634]
[1746667224910,5.46552913,1829.7,1829.3,5.46653783]
[1746667225213,5.46524599,1829.8,1829.4,3.0]
[1746667225413,11.85296111,1829.9,1829.5,6.24425616]
[1746667225620,11.85296111,1829.9,1829.5,8.16493157]
[1746667225815,6.388,1829.9,1829.6,5.46561426]
[1746667226021,6.388,1829.9,1829.7,0.05464862]
[1746667226407,6.138,1829.9,1829.6,5.46561426]
[1746667226611,6.138,1829.9,1829.7,5.5198907]
[1746667226807,6.138,1829.9,1829.7,6.6184412]
[1746667227185,6.138,1829.9,1829.7,9.6184649]
[1746667227387,6.138,1829.9,1829.7,4.0985505]
[1746667227829,6.383,1830.3,1829.9,5.46472524]
[1746667228138,6.383,1830.3,1829.9,8.5192293]
[1746667228301,6.383,1830.3,1829.9,3.93277293]
[1746667228483,11.84673227,1830.3,1829.9,9.39732273]
[1746667228830,11.84673227,1830.3,1830.0,5.46447505]
[1746667228831,6.383,1830.3,1830.0,5.46447505]
[1746667229186,6.383,1830.3,1830.1,0.7552]
[1746667229383,12.1445297,1830.6,1830.2,5.46388372]
[1746667229618,6.68159604,1830.6,1830.1,9.27382831]
[1746667229928,5.46301498,1830.5,1830.1,5.73329602]
[1746667230103,5.46341874,1830.4,1830.1,3.7552]
[1746667230617,5.46351776,1830.4,1830.1,3.7552]
[1746667230991,5.46315504,1830.5,1830.1,9.21936393]
[1746667231322,5.89380112,1830.6,1830.2,5.51829619]
[1746667231488,5.89380112,1830.6,1830.1,3.7552]
[1746667231489,0.4309526,1830.6,1830.3,5.46352362]
[1746667231689,0.4309526,1830.6,1830.3,9.00975012]
[1746667231897,0.4309526,1830.6,1830.5,3.0]
[1746667232412,0.4309526,1830.6,1830.5,8.46298825]
[1746667232603,0.4309526,1830.6,1830.5,3.0]
[1746667233850,6.71625869,1830.6,1830.2,0.7674]
[1746667234179,12.17923861,1830.6,1830.2,6.23113803]
[1746667234306,0.4309526,1830.6,1830.4,5.4631244]
[1746667234501,5.89384385,1830.6,1830.4,3.0]
[1746667234756,5.46298825,1830.5,1830.2,4.39054267]
[1746667234950,5.89384029,1830.6,1830.2,9.90887736]
[1746667235106,0.4309526,1830.6,1830.4,3.0]
[1746667235306,0.4309526,1830.6,1830.4,3.05463044]
[1746667235608,0.4309526,1830.6,1830.4,3.0]
[1746667236145,0.4309526,1830.6,1830.5,3.8242]
[1746667236343,0.4309526,1830.6,1830.5,9.28718825]
[1746667236555,0.4309526,1830.6,1830.5,10.27052861]
[1746667237042,0.7787,1831.2,1830.6,8.46258219]
[1746667237205,5.46171933,1831.0,1830.6,8.46258219]
[1746667237406,5.46133274,1831.1,1830.7,5.46222792]
[1746667237825,0.7787,1831.2,1830.6,7.49645524]
[1746667238021,6.23393437,1831.4,1831.0,8.4614747]
[1746667238438,0.8043,1831.6,1831.1,0.7709]
[1746667238609,6.352,1831.7,1831.1,0.7709]
[1746667238809,5.46015133,1831.5,1831.2,3.0]
[1746667239107,11.81154743,1831.7,1831.2,3.0]
[1746667239331,11.81155417,1831.7,1831.2,9.38404318]
[1746667239654,5.46011223,1831.5,1831.2,8.4196455]
[1746667239804,5.45984138,1831.6,1831.2,9.3840679]
[1746667240227,11.8116196,1831.7,1831.3,9.76857407]
[1746667240476,17.27128143,1831.7,1831.3,9.76857407]
[1746667240622,11.8116196,1831.7,1831.3,9.76857407]
[1746667241127,5.45921536,1831.8,1831.5,4.25338218]
[1746667241433,25.15096293,1831.9,1831.6,0.05459342]
[1746667242350,5.45885954,1831.9,1831.7,0.8211]
[1746667242852,5.45780319,1832.3,1831.8,15.17135039]
[1746667243157,5.45780319,1832.3,1831.8,11.31151346]
[1746667243311,12.23844663,1832.4,1831.8,5.85262722]
[1746667243503,12.23838557,1832.4,1832.0,4.25338218]
[1746667243744,5.45763539,1832.3,1832.0,5.07448218]
[1746667243918,12.23846569,1832.4,1832.0,10.53299194]
[1746667244119,5.45767611,1832.3,1832.0,5.07448218]
[1746667244577,5.45799101,1832.2,1832.0,0.8211]
[1746667244876,5.45821734,1832.1,1832.0,0.8211]
[1746667245071,10.91627978,1832.2,1832.0,0.8211]
[1746667245258,5.45810674,1832.2,1832.0,0.8211]
[1746667245462,6.7809526,1832.4,1832.0,0.8211]
[1746667245772,5.45808304,1832.2,1832.0,0.8211]
[1746667246174,5.45774309,1832.3,1832.0,3.8211]
[1746667246490,17.69592292,1832.4,1832.0,4.75452934]
[1746667246655,5.45796287,1832.2,1832.0,4.75452934]
[1746667246865,12.23840493,1832.4,1832.0,6.27960733]
[1746667247186,6.7809526,1832.4,1832.0,6.27946139]
[1746667247373,6.7809526,1832.4,1832.2,3.0]
[1746667247374,12.23828622,1832.4,1832.2,3.0]
[1746667247685,12.23828622,1832.4,1832.0,9.2794308]
[1746667248293,0.4309526,1832.4,1832.0,3.8211]
[1746667248445,0.4309526,1832.4,1832.1,5.84011909]
[1746667248649,0.4309526,1832.4,1832.2,3.0]
[1746667248883,0.4309526,1832.4,1832.3,7.53940629]
[1746667249184,0.4309526,1832.4,1832.3,8.68338997]
[1746667249985,0.4309526,1832.4,1832.3,3.7943]
[1746667250180,5.88827632,1832.4,1832.3,3.0]
[1746667250892,0.4309526,1832.4,1832.3,8.75762156]
[1746667251403,0.4309526,1832.4,1832.3,3.0]
[1746667251788,0.4309526,1832.4,1832.3,3.41798253]
[1746667252197,0.4309526,1832.4,1832.3,3.0]
[1746667252907,5.88827632,1832.4,1832.3,3.0]
[1746667253063,0.4309526,1832.4,1832.3,3.0]
[1746667253260,5.88827632,1832.4,1832.3,3.0]
[1746667253578,0.4309526,1832.4,1832.3,3.0]
[1746667253779,0.4309526,1832.4,1832.3,8.76307884]
[1746667254308,0.4309526,1832.4,1832.3,9.16543513]
[1746667254678,0.4309526,1832.4,1832.3,14.4859372]
[1746667254877,0.4309526,1832.4,1832.3,14.43137043]
[1746667255108,11.80230594,1832.8,1832.4,3.0]
[1746667255312,5.45643555,1832.7,1832.4,5.2888992]
[1746667255812,5.45447336,1833.4,1833.0,0.8225]
[1746667256011,5.45427546,1833.5,1833.1,0.05454588]
[1746667256213,5.45434256,1833.5,1833.1,3.0]
[1746667256369,5.45434256,1833.5,1833.1,3.92778895]
[1746667256569,5.45388783,1833.6,1833.1,3.92778895]
[1746667256768,5.45422059,1833.5,1833.1,9.38295131]
[1746667257009,5.4546672,1833.3,1833.1,3.92778895]
[1746667257311,5.4546672,1833.3,1833.1,3.0]
[1746667257601,5.45451272,1833.4,1833.1,3.0]
[1746667257808,5.45478485,1833.3,1833.1,3.0]
[1746667258005,5.45494217,1833.2,1832.8,7.11]
[1746667258207,5.4551474,1833.2,1832.8,2.02262388]
[1746667258411,5.45517207,1833.2,1832.8,10.47874215]
[1746667258583,5.45517207,1833.2,1832.8,5.02262388]
[1746667258774,10.91036845,1833.2,1832.8,10.47870993]
[1746667259107,5.45517207,1833.2,1832.8,10.47870993]
[1746667259339,5.45514359,1833.2,1832.9,1.04787099]
[1746667259640,5.45486707,1833.3,1833.0,3.0]
[1746667259800,5.45508071,1833.2,1833.0,3.0]
[1746667260005,0.8121,1834.2,1833.3,0.7874]
[1746667260217,5.45257746,1834.0,1833.6,5.45362071]
[1746667260425,5.45307327,1833.9,1833.7,0.54536207]
[1746667260640,5.45238894,1834.1,1833.6,5.45369866]
[1746667260837,5.45238894,1834.1,1833.7,5.50793808]
[1746667261144,5.45238894,1834.1,1833.8,0.8175]
[1746667261450,5.4524595,1834.1,1833.8,0.8175]
[1746667261745,5.45200338,1834.2,1833.8,6.27041686]
[1746667261927,5.45153067,1834.4,1834.0,5.45255061]
[1746667262134,5.88275322,1834.3,1834.0,3.0]
[1746667262435,5.45233536,1834.1,1833.9,0.62704169]
[1746667262641,5.45208359,1834.2,1833.9,0.62704169]
[1746667263136,5.45236816,1834.1,1833.9,0.62704169]
[1746667263350,0.7625,1834.2,1833.8,0.8175]
[1746667263533,5.45249998,1834.1,1833.4,0.8135]
[1746667263740,5.45421699,1833.5,1833.2,0.8135]
[1746667264051,5.45464462,1833.3,1833.2,0.62686249]
[1746667264254,5.45444768,1833.4,1833.0,5.2983353]
[1746667264554,5.45444768,1833.4,1833.0,10.7537755]
[1746667264758,5.45434711,1833.4,1833.0,0.8135]
[1746667265064,5.45404963,1833.5,1832.8,0.7529]
[1746667265065,5.45512698,1833.2,1832.8,0.7529]
[1746667265216,5.45515929,1833.2,1832.8,6.20887617]
[1746667265427,0.7887,1833.4,1832.8,0.92088762]
[1746667265750,5.45625082,1832.8,1832.5,4.88993964]
[1746667266050,6.24440842,1833.0,1832.5,4.4848353]
[1746667266051,0.7887,1833.0,1832.5,4.4848353]
[1746667266221,5.45596127,1832.9,1832.5,9.9417323]
[1746667266406,5.45617233,1832.8,1832.5,6.10321685]
[1746667266602,5.45647278,1832.7,1832.4,0.7849]
[1746667266834,5.45658454,1832.7,1832.4,0.7849]
[1746667267042,5.45680899,1832.6,1832.4,0.7849]
[1746667267243,5.45680899,1832.6,1832.3,0.30545728]
[1746667267609,5.45680899,1832.6,1832.3,3.30545728]
[1746667267812,5.45706916,1832.5,1832.1,4.58134058]
[1746667268047,5.45734762,1832.4,1832.1,4.58134058]
[1746667268446,5.45734762,1832.4,1832.0,6.23259373]
[1746667268815,5.45734762,1832.4,1832.1,3.0]
[1746667269023,5.457442,1832.4,1832.0,9.23254599]
[1746667269229,0.7707,1832.4,1832.0,1.46911196]
[1746667269446,6.22817111,1832.4,1832.0,5.45839476]
[1746667269657,6.22817111,1832.4,1831.9,6.00866495]
[1746667269865,0.7707,1832.4,1832.0,8.45830039]
[1746667270048,5.45736584,1832.4,1832.1,0.05457954]
[1746667270343,10.91497285,1832.4,1832.1,0.05457954]
[1746667270562,5.4577276,1832.3,1831.9,8.85805136]
[1746667270747,5.4577276,1832.3,1832.0,0.88580514]
[1746667271469,5.45754622,1832.4,1832.0,0.88580514]
[1746667271876,5.45765497,1832.3,1832.0,0.88580514]
[1746667272167,5.45723785,1832.5,1832.1,0.05457643]
[1746667272386,0.8278,1832.6,1832.1,3.05457643]
[1746667272551,5.45749628,1832.4,1832.2,0.30545764]
[1746667272872,5.45762613,1832.3,1832.0,3.88580514]
[1746667273168,5.45715544,1832.5,1832.2,3.0]
[1746667273359,5.45732891,1832.4,1832.1,3.05457964]
[1746667273559,10.91489334,1832.4,1832.1,3.0]
[1746667273883,5.45719952,1832.5,1832.1,3.0]
[1746667274049,5.45719952,1832.5,1832.1,9.44717622]
[1746667274568,5.45702592,1832.5,1832.2,3.0]
[1746667274873,6.28476239,1832.6,1832.2,3.0]
[1746667275072,6.26137733,1832.8,1832.3,5.4574361]
[1746667275386,5.45659407,1832.7,1832.4,3.54574361]
[1746667276150,6.2613187,1832.8,1832.4,0.54574361]
[1746667276477,6.2613187,1832.8,1832.4,8.45719216]
[1746667276779,5.45705162,1832.5,1832.2,9.25930673]
[1746667277081,5.45705162,1832.5,1832.2,3.8015]
[1746667277286,5.45689981,1832.6,1832.2,9.2593874]
[1746667277450,0.8051,1832.8,1832.2,5.32393674]
[1746667277451,5.45712925,1832.5,1832.2,5.32393674]
[1746667277657,0.8051,1832.8,1832.2,3.0]
[1746667277875,5.45762156,1832.3,1832.2,3.0]
[1746667278040,5.45749587,1832.4,1832.2,3.0]
[1746667278239,5.45762156,1832.3,1832.2,3.0]
[1746667278468,5.4575105,1832.4,1832.2,3.0]
[1746667278675,5.45762156,1832.3,1831.9,0.39933048]
[1746667278982,5.45832549,1832.1,1831.9,1.11040096]
[1746667279147,5.45820526,1832.2,1831.8,5.2457353]
[1746667279343,5.45808013,1832.2,1831.8,5.2457353]
[1746667279580,5.45815088,1832.2,1831.8,10.70470257]
[1746667279890,5.45823158,1832.1,1831.8,5.2457353]
[1746667280071,5.45806596,1832.2,1831.8,11.82486393]
[1746667280386,5.45806596,1832.2,1831.9,3.0]
[1746667280584,5.45824344,1832.1,1831.9,3.0]
[1746667280884,5.45811329,1832.2,1831.9,3.0]
[1746667281444,5.45841904,1832.1,1831.8,5.2457353]
[1746667281770,5.45852935,1832.0,1831.8,5.2457353]
[1746667281990,5.45852935,1832.0,1831.8,5.81090606]
[1746667282202,10.91733394,1832.0,1831.8,5.05000606]
[1746667282370,5.45852935,1832.0,1831.6,6.28790767]
[1746667282763,5.45877818,1832.0,1831.6,6.28790767]
[1746667283171,5.4583921,1832.1,1831.6,6.70189465]
[1746667283377,5.45862079,1832.0,1831.6,6.70189465]
[1746667283787,5.45862079,1832.0,1831.6,4.24238698]
[1746667283991,5.45873601,1832.0,1831.7,0.4242387]
[1746667285329,5.45836215,1832.1,1831.7,5.88355718]
[1746667285479,5.45805942,1832.2,1831.8,9.94392819]
[1746667285797,10.91622502,1832.2,1831.8,9.94392819]
[1746667285978,5.45862063,1832.0,1831.8,4.4848353]
[1746667286182,5.45881325,1831.9,1831.6,0.8284]
[1746667286509,5.4593149,1831.8,1831.6,1.35972353]
[1746667286881,6.24422385,1832.0,1831.6,6.81942899]
[1746667287194,5.45862385,1832.0,1831.6,6.81942899]
[1746667287411,10.9174314,1832.0,1831.6,6.81942899]
[1746667287622,5.45886214,1831.9,1831.6,1.35972353]
[1746667287791,10.91790878,1831.9,1831.6,1.35972353]
[1746667287994,10.91790041,1831.9,1831.6,1.35972353]
[1746667288316,5.45886214,1831.9,1831.6,1.35972353]
[1746667288477,5.45886214,1831.9,1831.6,6.81930992]
[1746667288680,5.45839411,1832.1,1831.7,0.68193099]
[1746667288915,5.45854017,1832.0,1831.7,5.45932184]
[1746667289115,5.45885353,1831.9,1831.6,1.35972353]
[1746667289706,5.45908776,1831.9,1831.6,5.61096895]
[1746667290850,5.45911459,1831.8,1831.6,5.61096895]
[1746667291006,5.45762156,1832.3,1831.7,0.5610969]
[1746667291329,5.45842087,1832.1,1831.8,4.25124542]
[1746667292031,10.91692805,1832.1,1831.8,4.25124542]
[1746667292244,5.45881325,1831.9,1831.8,4.25124542]
[1746667292404,5.45932903,1831.8,1831.6,5.61096895]
[1746667292602,5.45932903,1831.8,1831.6,5.68126812]
[1746667293003,5.4587345,1832.0,1831.6,16.65492706]
[1746667293205,10.91684011,1832.1,1831.8,4.25124542]
[1746667293505,5.45881325,1831.9,1831.8,4.25124542]
[1746667293706,5.45881325,1831.9,1831.6,5.68126812]
[1746667293907,5.45881325,1831.9,1831.7,0.56812681]
[1746667294710,5.45869484,1832.0,1831.7,0.56812681]
[1746667294935,10.91744995,1832.0,1831.7,0.56812681]
[1746667295133,5.45869484,1832.0,1831.7,6.02751982]
[1746667295344,5.45838557,1832.1,1831.7,11.54131247]
[1746667295525,5.45838557,1832.1,1831.8,1.15413125]
[1746667295921,5.45803874,1832.2,1831.9,5.45880936]
[1746667296126,5.45762156,1832.3,1831.9,0.8257]
[1746667296312,5.4589118,1831.9,1831.7,1.39382681]
[1746667296506,5.45841165,1832.1,1831.7,1.44841456]
[1746667296712,5.45841165,1832.1,1831.8,4.25124542]
[1746667296936,5.45841165,1832.1,1831.9,0.42512454]
[1746667297262,10.91690171,1832.1,1831.9,0.42512454]
[1746667297562,5.45851528,1832.0,1831.9,0.42512454]
[1746667297730,5.45890742,1831.9,1831.7,1.39382681]
[1746667298125,5.45851528,1832.0,1831.7,6.85319178]
[1746667299372,5.45834176,1832.1,1831.8,4.25124542]
[1746667299529,5.4580819,1832.2,1831.8,5.41626444]
[1746667299875,5.4580819,1832.2,1831.9,5.45874894]
[1746667300077,5.45781239,1832.3,1831.9,10.91734529]
[1746667300227,5.45685254,1832.6,1832.3,5.45762156]
[1746667300431,5.4565784,1832.7,1832.4,5.56800758]
[1746667300740,5.45699547,1832.6,1832.4,5.56800758]
[1746667300942,5.45702592,1832.5,1832.1,13.48025475]
[1746667301259,5.45791944,1832.2,1832.1,0.771]
[1746667301432,5.45791944,1832.2,1831.9,10.38124542]
[1746667301433,5.45812366,1832.2,1831.9,5.05144542]
[1746667302125,5.45762156,1832.3,1831.9,5.05144542]
[1746667302331,0.7593,1832.6,1831.9,0.8002]
[1746667302554,5.45759646,1832.4,1831.9,7.35039223]
[1746667302754,5.45771022,1832.3,1831.9,12.80899851]
[1746667302993,5.45771022,1832.3,1831.9,12.75441798]
[1746667303212,5.45771022,1832.3,1831.9,7.29576294]
[1746667303349,5.45794972,1832.2,1831.9,1.83715666]
[1746667303669,5.45837808,1832.1,1831.9,1.83715666]
[1746667304230,5.45809537,1832.2,1831.9,7.29591163]
[1746667304430,11.75675056,1832.3,1831.9,7.29591163]
[1746667304872,6.299,1832.3,1831.9,1.83715666]
[1746667305668,5.45825051,1832.1,1831.9,1.83715666]
[1746667305879,5.45825051,1832.1,1831.8,8.36167695]
[1746667306167,5.45825051,1832.1,1831.6,17.88852693]
[1746667306168,5.45911172,1831.8,1831.6,4.25124542]
[1746667306377,5.45912778,1831.8,1831.6,0.49978688]
[1746667306558,5.45940929,1831.7,1831.6,0.49978688]
[1746667306763,5.45940929,1831.7,1831.5,3.40525809]
[1746667307072,5.4596127,1831.7,1831.4,0.49978688]
[1746667307278,6.27869469,1831.8,1831.4,9.56097116]
[1746667307437,5.45943158,1831.7,1831.4,6.56097116]
[1746667308063,5.45943158,1831.7,1831.4,4.10081581]
[1746667308550,6.27851834,1831.8,1831.4,9.56111854]
[1746667308742,6.27851834,1831.8,1831.5,5.45999799]
[1746667308935,6.27851834,1831.8,1831.5,6.96210964]
[1746667309574,5.45913656,1831.8,1831.5,6.96210964]
[1746667309771,5.45913656,1831.8,1831.5,1.50211165]
[1746667310275,10.91802497,1831.9,1831.5,6.96210344]
[1746667310456,6.25458134,1832.0,1831.5,6.96210344]
[1746667310661,5.45897602,1831.9,1831.5,1.91517745]
[1746667310856,5.45921185,1831.8,1831.5,1.91517745]
[1746667311170,5.45970735,1831.6,1831.3,0.7967]
[1746667311344,5.46028526,1831.5,1831.0,5.46133781]
[1746667311553,5.46040917,1831.4,1831.1,0.8111]
[1746667311858,11.75958709,1831.7,1831.3,5.46039253]
[1746667312062,6.3,1831.7,1831.5,5.45992727]
[1746667312973,6.3,1831.7,1831.5,9.71106668]
[1746667313267,5.45872604,1832.0,1831.7,0.8181]
[1746667313771,5.45911125,1831.8,1831.7,0.8181]
[1746667313950,10.91848404,1831.8,1831.5,5.06934542]
[1746667314151,5.45911125,1831.8,1831.5,6.12228807]
[1746667314355,5.45949449,1831.7,1831.5,1.87104265]
[1746667314534,5.45851945,1832.0,1831.5,1.87104265]
[1746667314535,5.45922725,1831.8,1831.5,0.8181]
[1746667314741,5.45896757,1831.9,1831.6,5.45965311]
[1746667314936,5.45896757,1831.9,1831.5,10.52922774]
[1746667315155,5.45915597,1831.8,1831.5,5.06934542]
[1746667315356,5.45947335,1831.7,1831.5,0.8181]
[1746667315674,5.45915597,1831.8,1831.5,0.8181]
[1746667315878,5.4589433,1831.9,1831.5,6.90592259]
[1746667316649,5.4589433,1831.9,1831.6,5.45967101]
[1746667316848,5.4589433,1831.9,1831.5,11.15716801]